Cogmind - Beta 14 @@@ ROGUE MODE // 2025.01.04 @ 22:46:58 Player: Nueadkie Result: Destroyed by MI-9BC(R) with Subdweller Beam Cannon Performance ------------- Evolutions (0) 0 Regions Visited (2) 400 Robots Destroyed (32) 160 Value Destroyed (645) 645 Prototype IDs (0) 0 Alien Tech Used (0) 0 Bonus (0) 0 TOTAL SCORE: 1205 Bonus ------- None Cogmind --------- Core Integrity 0/250 Matter 300/300 Energy 100/100 System Corruption 1% Temperature Cool (9) Movement Treading (240) Ox1 Location -10/Subcaves Parts ------- > --- POWER (1) -------- (None) > --- PROPULSION (2) --- Light Treads Aluminum Leg > --- UTILITY (2) ------ Large Storage Unit Structural Scanner > --- WEAPON (2) ------- Assault Rifle Makeshift Spear > --- INVENTORY (15) --- Light Ion Engine Light Ion Engine Light Treads Subdweller Monowheel Structural Scanner Visual Processing Unit Subdweller Optics Improved Terrain Scanner Terrain Scan Processor Hacking Suite Hacking Suite Makeshift System Shield Subdweller Machine Gun Grenade Launcher Peak State ------------ > --- POWER ------------ Light Ion Engine > --- PROPULSION ------- Aluminum Leg Aluminum Leg > --- UTILITY ---------- Large Storage Unit Structural Scanner > --- WEAPON ----------- Assault Rifle Makeshift Spear > --- INVENTORY -------- Ion Engine Light Ion Engine Light Ion Engine Light Treads Light Treads Structural Scanner Visual Processing Unit Improved Terrain Scanner Terrain Scan Processor Hacking Suite Hacking Suite Makeshift System Shield Subdweller Machine Gun Grenade Launcher [Rating: 12] Favorites ----------- Power Ion Engine Engine Ion Engine Propulsion Aluminum Leg Treads Light Treads Leg Aluminum Leg Utility Large Storage Unit Device Sensor Array Storage Large Storage Unit Weapon Assault Rifle Ballistic Gun Assault Rifle Special Weapon Welding Torch Piercing Weapon Makeshift Spear Build | -11 -10 -10 ------- Run | Yrd Mat Sub Slots Evolved . | . . . Power . | . . . Propulsion . | . . . Utility . | . . . Weapon . | . . . Parts Attached 21 | 7 9 5 Power 3 | 1 . 2 Engine 3 | 1 . 2 Core . | . . . Reactor . | . . . Propulsion 5 | 2 2 1 Treads 1 | . . 1 Leg 4 | 2 2 . Wheel . | . . . Hover . | . . . Flight . | . . . Utility 6 | 2 3 1 Device 4 | 1 2 1 Storage 2 | 1 1 . Processor . | . . . Hackware . | . . . Protection . | . . . Artifact . | . . . Weapon 7 | 2 4 1 Energy Gun . | . . . Energy Cannon . | . . . Ballistic Gun 5 | 2 3 . Ballistic Cannon . | . . . Launcher . | . . . Special Weapon 1 | . 1 . Impact Weapon . | . . . Slashing Weapon . | . . . Piercing Weapon 1 | . . 1 Special Melee Weapon . | . . . Unidentified Prototypes . | . . . Parts Lost 6 | . 2 4 Power 2 | . . 2 Propulsion 2 | . 1 1 Utility 1 | . . 1 Weapon 1 | . 1 . Highest Loss Streak 3 | . 1 3 To Critical Strikes . | . . . Average Slot Usage (%) 96 | . 99 94 Engine 13 | . 14 12 Leg 27 | . 27 26 Device 11 | . 14 10 Storage 14 | . 14 14 Ballistic Gun 22 | . 27 19 Piercing Weapon 4 | . . 8 Peak Build Rating 12 | 7 9 12 Average Rating 9 | 6 7 10 On Entrance 5 | . 7 9 Naked Turns . | . . . Heaviest Build 30 | 14 30 30 Greatest Support 20 | 20 20 20 Greatest Overweight (x) 2 | . 2 2 Average Overweight (x) . | . . 1 Largest Inventory Capacity 15 | 8 15 15 Average Capacity 13 | 7 13 15 Most Carried 15 | 5 14 15 Average Carried 11 | 3 8 14 Final Capacity 15 | 8 15 15 Final Carried 14 | 5 14 14 Class Distribution -------------------- 100% | Mutant Dominant Class ---------------- Mutant | -10/Materials Mutant | -10/Subcaves Resources | -11 -10 -10 ----------- Run | Yrd Mat Sub Matter Collected 896 | 301 468 127 Remotely . | . . . Salvage Created 959 | 188 629 142 Parts 77 | 20 50 7 Haulers Intercepted 1 | . 1 . Recyclers Shooed . | . . . Parts Field Recycled . | . . . Retrieved Matter . | . . . Parts Self-Destructed 4 | . . 4 Prevented . | . . . Kills | -11 -10 -10 ------- Run | Yrd Mat Sub Combat Hostiles Destroyed 15 | . 12 3 Melee 1 | . . 1 Guns 14 | . 12 2 Classes Destroyed 9 | 2 6 1 Builder 3 | . 3 . Tunneler 8 | 8 . . Hauler 1 | . 1 . Recycler 1 | 1 . . Operator 2 | . 2 . Watcher 2 | . 2 . Swarmer 3 | . 3 . Grunt 9 | . 9 . Subdweller 3 | . . 3 Best Kill Streak 4 | 2 4 1 Combat Bots Only 3 | . 3 1 Max Kills in Single Turn 1 | 1 1 1 Gunslinging . | . . . Exploded . | . . . Melee 1 | . . 1 Uniques/NPCs Destroyed . | . . . Combat | -11 -10 -10 -------- Run | Yrd Mat Sub Hostile Shots Fired 93 | . 58 35 Missed 30 | . 20 10 Damage Taken 1023 | . 470 553 Core 251 | . 88 163 Absorbed by Shields . | . . . Core Remaining (%) 100 | 100 . . Volleys Fired 108 | 26 67 15 Largest 2 | 2 2 2 Hottest 40 | 40 40 40 Shots Fired 217 | 52 135 30 Gun 217 | 52 135 30 Cannon . | . . . Launcher . | . . . Special . | . . . Kinetic 217 | 52 135 30 Thermal . | . . . Explosive . | . . . Electromagnetic . | . . . Robot Hit Streak 13 | 8 13 7 Robot Miss Streak 4 | 3 4 2 Penetration Max . | . . . Secondary Targets 1 | . 1 . Max Gunslinging Chain 1 | . 1 . Shots Hit Robots 132 | 28 81 23 Core Hits 55 | 15 34 6 Critical Kills . | . . . Critical Parts Destroyed . | . . . Critical Strikes 1 | . . 1 Impale 1 | . . 1 Melee Attacks 15 | . . 15 Impact . | . . . Slashing . | . . . Piercing 15 | . . 15 Sneak Attacks . | . . . Combat Hostiles . | . . . Follow-up Attacks . | . . . Damage Inflicted 1680 | 299 1069 312 Guns 1501 | 299 991 211 Cannons . | . . . Explosions 78 | . 78 . Melee 101 | . . 101 Ramming . | . . . Kinetic 1501 | 299 991 211 Thermal . | . . . Explosive . | . . . Electromagnetic 78 | . 78 . Impact . | . . . Slashing . | . . . Piercing 101 | . . 101 Highest Corruption 1 | . 1 1 Average Corruption 1 | . 1 1 Corruption Purged . | . . . Corruption Blocked . | . . . Effects 13 | . 7 6 Message Errors 5 | . 2 3 Matter Fused 1 | . . 1 Heat Flow Errors 2 | . 1 1 Energy Discharges 1 | . 1 . Parts Rejected 1 | . 1 . Data Loss (minor) 1 | . 1 . Misfires 2 | . 1 1 Overload Shots . | . . . Overflow Damage 13 | . . 13 Projectiles . | . . . Explosions . | . . . Melee 13 | . . 13 Knockbacks . | . . . Impact . | . . . Kinetic . | . . . Secondary . | . . . Self-Inflicted Damage 26 | . 26 . Shots 1 | . 1 . Rammed . | . . . Targets Rammed . | . . . Kicked . | . . . Crushed . | . . . Highest Temperature 140 | . 122 140 Average Temperature 43 | . 35 82 Received Heat Transfer 333 | . 246 87 Siege Activations . | . . . Robots Corrupted . | . . . Combat Hostiles . | . . . Parts Fried . | . . . Impact Corruptions . | . . . Robots Melted . | . . . Combat Hostiles . | . . . Parts Melted . | . . . Heat Transferred . | . . . Parts Sabotaged . | . . . Parts Stolen . | . . . Parts Stripped . | . . . Power Chain Reactions 1 | . 1 . Alert | -11 -10 -10 ------- Run | Yrd Mat Sub Peak Influence 310 | 45 310 . Initial 29 | . 29 . Average 121 | 18 150 . Maximum Alert Level 1 | . 1 . Low Security (%) 72 | 100 64 . Level 1 27 | . 35 . Level 2 . | . . . Level 3 . | . . . Level 4 . | . . . Level 5 . | . . . High Security . | . . . Max Security . | . . . Squads Dispatched 5 | . 5 . Investigation 2 | . 2 . Extermination . | . . . Reinforcement 3 | . 3 . Assault . | . . . Garrison . | . . . Intercept . | . . . Searches Triggered . | . . . Construction Impeded . | . . . Haulers Reinforced . | . . . Active Scanning Responses . | . . . Cargo Convoy Interrupts . | . . . Stealth | -11 -10 -10 --------- Run | Yrd Mat Sub Distress Signals 3 | . 3 . Communications Jammed . | . . . Distress Signals . | . . . Times Spotted 33 | . 23 10 Peak Tracking Total 5 | . 4 5 Tactical Retreats 2 | . . 2 Traps | -11 -10 -10 ------- Run | Yrd Mat Sub Traps Triggered 1 | . 1 . Indirectly . | . . . Trap Hack Attempts . | . . . Triggered . | . . . Disarmed . | . . . Reprogrammed . | . . . Reused . | . . . Traps Extracted . | . . . Installed . | . . . Triggered . | . . . Machines | -11 -10 -10 ---------- Run | Yrd Mat Sub Machines Disabled 2 | . 2 . Max in Single Turn 1 | . 1 . Machines Repaired . | . . . Machines Dismantled . | . . . Machines Sabotaged . | . . . Overloaded Fab Kills . | . . . Hacking | -11 -10 -10 --------- Run | Yrd Mat Sub Machines Accessed 5 | . 5 . Terminals 4 | . 4 . Fabricators . | . . . Repair Stations . | . . . Recycling Units 1 | . 1 . Scanalyzers . | . . . Garrison Access . | . . . Total Hacks 14 | . 14 . Successful 6 | . 6 . Failed 8 | . 8 . Catastrophic 4 | . 4 . Database Lockouts . | . . . Manual 6 | . 6 . Terminals 10 | . 10 . Fabricators . | . . . Repair Stations . | . . . Recycling Units 4 | . 4 . Scanalyzers . | . . . Garrison Access . | . . . Terminal Hacks 4 | . 4 . Part Schematic 1 | . 1 . Robot Analysis 1 | . 1 . Alert Level 1 | . 1 . Zone Layout 1 | . 1 . Fabricator Hacks . | . . . Repair Station Hacks . | . . . Recycling Unit Hacks 2 | . 2 . Process 1 | . 1 . Retrieve Matter 1 | . 1 . Scanalyzer . | . . . Garrison Access Hacks . | . . . Unauthorized Hacks . | . . . Terminals . | . . . Fabricators . | . . . Repair Stations . | . . . Recycling Units . | . . . Scanalyzers . | . . . Garrison Access . | . . . Data Cores Recovered 1 | . 1 . Used 1 | . 1 . Hacking Detections 5 | . 5 . Full Trace Events 2 | . 2 . Feedback Events . | . . . Feedback Blocked . | . . . Robot Schematics Acquired . | . . . Robots Built . | . . . Authchips . | . . . Time . | . . . Total Robot Build Rating . | . . . Part Schematics Acquired 1 | . 1 . Parts Built . | . . . Authchips . | . . . Time . | . . . Total Part Build Rating . | . . . Parts Repaired . | . . . Time . | . . . Parts Recycled . | . . . Recycled Matter 219 | . 219 . Retrieved Matter 715 | . 715 . Retrieved Components . | . . . Parts Scanalyzed . | . . . Part Schematics Acquired . | . . . Parts Damaged . | . . . Bothacking | -11 -10 -10 ------------ Run | Yrd Mat Sub Used RIF Installer . | . . . Robots Hacked . | . . . Non-combat . | . . . Combat . | . . . Robot Hacks Applied . | . . . Relay Couplers Released . | . . . Fabnet Peak Effective % . | . . . Robots Rewired . | . . . Allies Hacked . | . . . Hacks Repelled . | . . . Allies | -11 -10 -10 -------- Run | Yrd Mat Sub Total Allies . | . . . Largest Group . | . . . Highest-Rated Group . | . . . Highest-Rated Ally . | . . . Total Orders . | . . . Ally Attacks . | . . . Total Damage . | . . . Kills . | . . . Allies Corrupted . | . . . Allies Melted . | . . . Intel | -11 -10 -10 ------- Run | Yrd Mat Sub Robot Analysis Total 1 | . 1 . Derelict Logs Recovered 2 | . . 2 Drone Launches . | . . . Drone Recoveries . | . . . Exploration | -11 -10 -10 ------------- Run | Yrd Mat Sub Turns Passed 2632 | 273 987 1372 Spaces Moved 1226 | 156 429 641 Core 3 | 3 . . Treads 37 | . . 37 Legs 1186 | 153 429 604 Wheels . | . . . Hover . | . . . Flight . | . . . Fastest Speed 50 | 50 120 190 Average Speed 173 | 118 163 193 Slowest Speed 260 | 120 260 260 Overloaded Moves . | . . . Propulsion Burnouts . | . . . Robots Hopped . | . . . Cave-ins Triggered . | . . . Exploration Rate (%) 26 | 7 44 27 Regions Visited 2 Branch Regions 1 Pre-discovered Areas . | . . . Known Exits Taken . | . . . Unknown Exits Taken 2 | 1 1 . Scrap Searched 4 | . . 4 Spaces Dug 6 | . . 6 Terrain Destroyed 8 | . 2 6 Melee 6 | . . 6 Projectile . | . . . AOE 2 | . 2 . Terrain Rammed . | . . . Walls Destroyed . | . . . Machines Disabled . | . . . Actions | -11 -10 -10 --------- Run | Yrd Mat Sub Total 1505 | 194 580 731 Wait 110 | . 62 48 Move 1224 | 155 428 641 Hop . | . . . Pick Up 20 | 6 9 5 Fast Attach 10 | 6 4 . Attach 7 | 1 2 4 Detach 3 | . 3 . Swap 4 | . 3 1 Drop 4 | . 2 2 Fire 108 | 26 67 15 Melee 15 | . . 15 Ram . | . . . Kick . | . . . Crush . | . . . Escape Stasis . | . . . Rewire . | . . . Trap . | . . . Miscellaneous . | . . . Route ------- -11/Scrapyard -10/Materials (discovered 4 exits: [*Mat x2] / [*Min] / [*Sub]) -10/Subcaves (discovered 1 exit: [*Mat]) History --------- Turn | Location | Event 30 | -11/Scrapyard | Discovered new exit (range 15) 274 | -11/Scrapyard | Entered Materials 329 | -10/Materials | Build established: Mutant 394 | -10/Materials | Discovered new exit (range 16) 413 | -10/Materials | Discovered new exit (range 20) 638 | -10/Materials | Discovered new exit (range 16) 943 | -10/Materials | Discovered new exit (range 5) 1261 | -10/Materials | Entered Subcaves 1541 | -10/Subcaves | A swath of the cavern ceiling suddenly collapsed 1748 | -10/Subcaves | Core integrity fell below 50% 2092 | -10/Subcaves | Learned 8 Materials zone layouts 2476 | -10/Subcaves | Discovered new exit (range 11) 2543 | -10/Subcaves | Learned location of 2 exits from Materials 2559 | -10/Subcaves | Lost 3 parts (2p1n) 2611 | -10/Subcaves | A Subdweller sparked back to life 2613 | -10/Subcaves | Core integrity fell below 20% 2633 | -10/Subcaves | Destroyed by MI-9BC(R) with Subdweller Beam Cannon Last Messages --------------- 02092_ Acquired derelict log, extracted data. Data stored: Materials zone layouts (x8). 02209_ System corrupted: FCS attempts to trigger Assault Rifle. 02209_ System corrupted: Assault Rifle misfires. 02476_ EXIT=FOUND 02505_ Z6-JZL(R) suffers critical hit (Impale). 02506_ Aluminum Leg destroyed. 02508_ Destroyed Sub. Laser. 02520_ Lgt. Ion Engine destroyed. 02528_ Ion Engine destroyed. 02528_ E8-WCA(R) destroyed. 02530_ Acquired 21 matter. 02535_ Acquired Sub. Monowheel. 02543_ Acquired derelict log, extracted data. Data stored: Materials exits (x2). 02553_ GA>2YY//Z=%U4NZE